[Event "Titled Tuesday Blitz June 20 Early 2023"]
[White "Kamsky, Gata"]
[Black "Maksimovic, Bojan"]
[WhiteFideId "2000024"]
[BlackFideId "14408120"]
[WhiteElo "2660"]
[BlackElo "2457"]
[Result "1/2-1/2"]
[Round "4"]
[TimeControl "180+2"]
[Date "2023.06.20"]
[WhiteClock "0:00:15"]
[BlackClock "0:00:06"]
[Board "13"]

1. d4 {[%clk 0:03:00]}  Nf6 {[%clk 0:02:59]} 2. Nf3 {[%clk 0:03:00]}  d6 {[%clk 0:02:59]} 3. Bf4 {[%clk 0:02:59]}  Nh5 {[%clk 0:02:54]} 4. Bd2 {[%clk 0:02:50]}  Nd7 {[%clk 0:02:53]} 5. e4 {[%clk 0:02:50]}  g6 {[%clk 0:02:41]} 6. Nc3 {[%clk 0:02:46]}  Bg7 {[%clk 0:02:34]} 7. Bc4 {[%clk 0:02:43]}  O-O {[%clk 0:02:34]} 8. O-O {[%clk 0:02:41]}  e5 {[%clk 0:02:31]} 9. Bg5 {[%clk 0:02:36]}  Bf6 {[%clk 0:02:25]} 10. Bh6 {[%clk 0:02:36]}  Bg7 {[%clk 0:02:23]} 11. Bxg7 {[%clk 0:02:27]}  Kxg7 {[%clk 0:02:20]} 12. Qd2 {[%clk 0:02:19]}  c6 {[%clk 0:02:18]} 13. a3 {[%clk 0:02:17]}  Qf6 {[%clk 0:02:15]} 14. Rfe1 {[%clk 0:02:05]}  Nf4 {[%clk 0:02:12]} 15. Bf1 {[%clk 0:01:50]}  Nb6 {[%clk 0:01:51]} 16. dxe5 {[%clk 0:01:48]}  dxe5 {[%clk 0:01:51]} 17. Qe3 {[%clk 0:01:49]}  Rd8 {[%clk 0:01:32]} 18. a4 {[%clk 0:01:34]}  Bg4 {[%clk 0:01:22]} 19. a5 {[%clk 0:01:32]}  Nd7 {[%clk 0:01:18]} 20. Nd2 {[%clk 0:01:30]}  Nf8 {[%clk 0:01:17]} 21. Nb3 {[%clk 0:01:12]}  h5 {[%clk 0:00:51]} 22. f3 {[%clk 0:01:04]}  Be6 {[%clk 0:00:25]} 23. Nc5 {[%clk 0:01:02]}  Qe7 {[%clk 0:00:26]} 24. g3 {[%clk 0:00:56]}  Nh3+ {[%clk 0:00:24]} 25. Kg2 {[%clk 0:00:50]}  Ng5 {[%clk 0:00:21]} 26. h4 {[%clk 0:00:48]}  Ngh7 {[%clk 0:00:22]} 27. Rad1 {[%clk 0:00:44]}  Nf6 {[%clk 0:00:17]} 28. b4 {[%clk 0:00:37]}  a6 {[%clk 0:00:16]} 29. N3a4 {[%clk 0:00:36]}  Rxd1 {[%clk 0:00:15]} 30. Rxd1 {[%clk 0:00:36]}  Re8 {[%clk 0:00:15]} 31. Nb6 {[%clk 0:00:34]}  Bc8 {[%clk 0:00:15]} 32. Qd2 {[%clk 0:00:33]}  Ne6 {[%clk 0:00:14]} 33. Nxe6+ {[%clk 0:00:32]}  Bxe6 {[%clk 0:00:14]} 34. Qd6 {[%clk 0:00:31]}  Qxd6 {[%clk 0:00:10]} 35. Rxd6 {[%clk 0:00:31]}  Kf8 {[%clk 0:00:10]} 36. c4 {[%clk 0:00:28]}  Ke7 {[%clk 0:00:11]} 37. c5 {[%clk 0:00:27]}  Rd8 {[%clk 0:00:11]} 38. Rxd8 {[%clk 0:00:27]}  Kxd8 {[%clk 0:00:12]} 39. Kf2 {[%clk 0:00:27]}  Ne8 {[%clk 0:00:11]} 40. Bc4 {[%clk 0:00:23]}  Nc7 {[%clk 0:00:09]} 41. Ke3 {[%clk 0:00:22]}  Ke7 {[%clk 0:00:05]} 42. f4 {[%clk 0:00:22]}  exf4+ {[%clk 0:00:05]} 43. gxf4 {[%clk 0:00:21]}  Bh3 {[%clk 0:00:05]} 44. Bb3 {[%clk 0:00:19]}  Nb5 {[%clk 0:00:05]} 45. Nc4 {[%clk 0:00:19]}  Be6 {[%clk 0:00:05]} 46. Nd2 {[%clk 0:00:18]}  Bh3 {[%clk 0:00:04]} 47. Nf3 {[%clk 0:00:18]}  Bc8 {[%clk 0:00:04]} 48. Bc4 {[%clk 0:00:17]}  Nc7 {[%clk 0:00:04]} 49. Kd4 {[%clk 0:00:16]}  Be6 {[%clk 0:00:04]} 50. Bd3 {[%clk 0:00:16]}  Bd7 {[%clk 0:00:03]} 51. Ne5 {[%clk 0:00:16]}  Ne6+ {[%clk 0:00:04]} 52. Ke3 {[%clk 0:00:16]}  Be8 {[%clk 0:00:04]} 53. Nc4 {[%clk 0:00:17]}  Bd7 {[%clk 0:00:04]} 54. Nd6 {[%clk 0:00:17]}  Nd8 {[%clk 0:00:04]} 55. f5 {[%clk 0:00:17]}  gxf5 {[%clk 0:00:03]} 56. exf5 {[%clk 0:00:17]}  f6 {[%clk 0:00:03]} 57. Be2 {[%clk 0:00:17]}  Be8 {[%clk 0:00:03]} 58. Nxe8 {[%clk 0:00:17]}  Kxe8 {[%clk 0:00:04]} 59. Bxh5+ {[%clk 0:00:17]}  Kf8 {[%clk 0:00:05]} 60. Bg6 {[%clk 0:00:16]}  Nf7 {[%clk 0:00:04]} 61. Bxf7 {[%clk 0:00:16]}  Kxf7 {[%clk 0:00:05]} 62. Kf4 {[%clk 0:00:16]}  Kg7 {[%clk 0:00:05]} 63. Kg4 {[%clk 0:00:17]}  Kh6 {[%clk 0:00:05]} 64. Kf4 {[%clk 0:00:16]}  Kg7 {[%clk 0:00:06]} 65. Kg4 {[%clk 0:00:16]}  Kh6 {[%clk 0:00:05]} 66. Kf4 {[%clk 0:00:15]}  Kg7 {[%clk 0:00:06]} 1/2-1/2


[Site "https://www.chess.com"]

[Event "Titled Tuesday Blitz June 20 Early 2023"]
[White "Sviridov, Valery"]
[Black "Morefield, Jason"]
[WhiteFideId "4120680"]
[BlackFideId "30920825"]
[WhiteElo "2457"]
[BlackElo "2171"]
[Result "1-0"]
[Round "4"]
[TimeControl "180+2"]
[Date "2023.06.20"]
[WhiteClock "0:00:04"]
[BlackClock "0:00:03"]
[Board "14"]

1. d4 {[%clk 0:02:34]}  Nf6 {[%clk 0:02:59]} 2. Nf3 {[%clk 0:02:33]}  d5 {[%clk 0:02:59]} 3. c4 {[%clk 0:02:31]}  c6 {[%clk 0:02:57]} 4. Qc2 {[%clk 0:02:29]}  dxc4 {[%clk 0:02:55]} 5. Qxc4 {[%clk 0:02:30]}  Bf5 {[%clk 0:02:55]} 6. g3 {[%clk 0:02:31]}  Nbd7 {[%clk 0:02:55]} 7. Bg2 {[%clk 0:02:31]}  e6 {[%clk 0:02:55]} 8. O-O {[%clk 0:02:31]}  Be7 {[%clk 0:02:56]} 9. Nc3 {[%clk 0:02:32]}  O-O {[%clk 0:02:56]} 10. e3 {[%clk 0:02:32]}  Rc8 {[%clk 0:02:50]} 11. Qe2 {[%clk 0:02:32]}  c5 {[%clk 0:02:41]} 12. Rd1 {[%clk 0:02:29]}  Re8 {[%clk 0:02:24]} 13. h3 {[%clk 0:02:25]}  Bg6 {[%clk 0:02:15]} 14. Ne5 {[%clk 0:02:07]}  cxd4 {[%clk 0:02:12]} 15. exd4 {[%clk 0:02:08]}  Qb6 {[%clk 0:01:54]} 16. Nxg6 {[%clk 0:02:05]}  hxg6 {[%clk 0:01:54]} 17. Be3 {[%clk 0:02:06]}  Qb4 {[%clk 0:01:24]} 18. Qb5 {[%clk 0:01:45]}  Qxb5 {[%clk 0:01:20]} 19. Nxb5 {[%clk 0:01:46]}  a6 {[%clk 0:01:20]} 20. Nc3 {[%clk 0:01:47]}  a5 {[%clk 0:01:01]} 21. Bxb7 {[%clk 0:01:24]}  Rb8 {[%clk 0:01:01]} 22. Bc6 {[%clk 0:01:24]}  Rxb2 {[%clk 0:01:00]} 23. d5 {[%clk 0:01:25]}  exd5 {[%clk 0:00:48]} 24. Nxd5 {[%clk 0:01:26]}  Nxd5 {[%clk 0:00:40]} 25. Rxd5 {[%clk 0:01:22]}  Nf6 {[%clk 0:00:40]} 26. Rxa5 {[%clk 0:01:23]}  Rc8 {[%clk 0:00:37]} 27. Ba4 {[%clk 0:01:19]}  Bd6 {[%clk 0:00:19]} 28. Bb3 {[%clk 0:01:07]}  Rc7 {[%clk 0:00:19]} 29. Rd1 {[%clk 0:01:07]}  Be7 {[%clk 0:00:17]} 30. Ra8+ {[%clk 0:00:59]}  Kh7 {[%clk 0:00:17]} 31. Bxf7 {[%clk 0:00:56]}  Bc5 {[%clk 0:00:16]} 32. Bxc5 {[%clk 0:00:54]}  Rxf7 {[%clk 0:00:16]} 33. Bd4 {[%clk 0:00:48]}  Rc2 {[%clk 0:00:14]} 34. Be3 {[%clk 0:00:33]}  Ne4 {[%clk 0:00:12]} 35. Rdd8 {[%clk 0:00:33]}  g5 {[%clk 0:00:12]} 36. Rf8 {[%clk 0:00:27]}  Rxf8 {[%clk 0:00:10]} 37. Rxf8 {[%clk 0:00:28]}  Rxa2 {[%clk 0:00:10]} 38. Re8 {[%clk 0:00:28]}  Ra4 {[%clk 0:00:10]} 39. Re5 {[%clk 0:00:28]}  Kg6 {[%clk 0:00:10]} 40. Rb5 {[%clk 0:00:29]}  Rc4 {[%clk 0:00:09]} 41. Kg2 {[%clk 0:00:29]}  Rc2 {[%clk 0:00:08]} 42. Kf3 {[%clk 0:00:28]}  Rc4 {[%clk 0:00:08]} 43. Re5 {[%clk 0:00:26]}  Nf6 {[%clk 0:00:07]} 44. Rxg5+ {[%clk 0:00:26]}  Kf7 {[%clk 0:00:08]} 45. Rb5 {[%clk 0:00:27]}  Ra4 {[%clk 0:00:08]} 46. g4 {[%clk 0:00:26]}  Rc4 {[%clk 0:00:07]} 47. Rb7+ {[%clk 0:00:25]}  Kg6 {[%clk 0:00:08]} 48. Rb6 {[%clk 0:00:26]}  Kf7 {[%clk 0:00:08]} 49. Ra6 {[%clk 0:00:26]}  Rb4 {[%clk 0:00:07]} 50. Ra5 {[%clk 0:00:21]}  Rc4 {[%clk 0:00:06]} 51. Kg2 {[%clk 0:00:18]}  Kg6 {[%clk 0:00:06]} 52. Rg5+ {[%clk 0:00:14]}  Kf7 {[%clk 0:00:06]} 53. Rf5 {[%clk 0:00:15]}  Ke6 {[%clk 0:00:06]} 54. Rf4 {[%clk 0:00:16]}  Rc2 {[%clk 0:00:06]} 55. Ra4 {[%clk 0:00:16]}  Nd5 {[%clk 0:00:06]} 56. Kf3 {[%clk 0:00:14]}  Kf7 {[%clk 0:00:04]} 57. h4 {[%clk 0:00:14]}  Rc3 {[%clk 0:00:04]} 58. h5 {[%clk 0:00:14]}  Nf6 {[%clk 0:00:04]} 59. Ra7+ {[%clk 0:00:13]}  Kg8 {[%clk 0:00:04]} 60. Ra4 {[%clk 0:00:11]}  Rc6 {[%clk 0:00:03]} 61. Rb4 {[%clk 0:00:10]}  Nd5 {[%clk 0:00:03]} 62. Rd4 {[%clk 0:00:09]}  Ne7 {[%clk 0:00:03]} 63. Re4 {[%clk 0:00:08]}  Rf6+ {[%clk 0:00:04]} 64. Kg2 {[%clk 0:00:07]}  Nd5 {[%clk 0:00:04]} 65. Bd4 {[%clk 0:00:07]}  Rc6 {[%clk 0:00:05]} 66. Kg3 {[%clk 0:00:06]}  Nc7 {[%clk 0:00:04]} 67. f3 {[%clk 0:00:06]}  Ne6 {[%clk 0:00:05]} 68. Be3 {[%clk 0:00:06]}  Kf7 {[%clk 0:00:05]} 69. h6 {[%clk 0:00:05]}  gxh6 {[%clk 0:00:05]} 70. Bxh6 {[%clk 0:00:06]}  Nc5 {[%clk 0:00:05]} 71. Rc4 {[%clk 0:00:04]}  Ke6 {[%clk 0:00:04]} 72. Be3 {[%clk 0:00:04]}  Ne4+ {[%clk 0:00:03]} 73. Rxe4+ {[%clk 0:00:04]} 1-0


[Site "https://www.chess.com"]

[Event "Titled Tuesday Blitz June 20 Early 2023"]
[White "Pinheiro, Iung Alicio de O."]
[Black "Shimanov, Aleksandr"]
[WhiteFideId "2104350"]
[BlackFideId "4198603"]
[WhiteElo "2283"]
[BlackElo "2631"]
[Result "0-1"]
[Round "4"]
[TimeControl "180+2"]
[Date "2023.06.20"]
[WhiteClock "0:00:12"]
[BlackClock "0:01:58"]
[Board "20"]

1. e4 {[%clk 0:03:00]}  d5 {[%clk 0:02:58]} 2. exd5 {[%clk 0:03:00]}  Qxd5 {[%clk 0:02:59]} 3. Nc3 {[%clk 0:03:00]}  Qe5+ {[%clk 0:03:00]} 4. Be2 {[%clk 0:02:55]}  Bg4 {[%clk 0:03:00]} 5. d4 {[%clk 0:02:55]}  Bxe2 {[%clk 0:03:01]} 6. Ngxe2 {[%clk 0:02:52]}  Qa5 {[%clk 0:03:01]} 7. Qd3 {[%clk 0:02:27]}  Nf6 {[%clk 0:03:00]} 8. O-O {[%clk 0:02:25]}  Nc6 {[%clk 0:02:59]} 9. Be3 {[%clk 0:02:12]}  O-O-O {[%clk 0:02:58]} 10. Qc4 {[%clk 0:02:12]}  e6 {[%clk 0:02:58]} 11. a3 {[%clk 0:02:13]}  h5 {[%clk 0:02:51]} 12. Qb5 {[%clk 0:01:46]}  Be7 {[%clk 0:02:40]} 13. h3 {[%clk 0:01:45]}  a6 {[%clk 0:02:35]} 14. Qxa5 {[%clk 0:01:44]}  Nxa5 {[%clk 0:02:36]} 15. b3 {[%clk 0:01:43]}  Ne8 {[%clk 0:02:31]} 16. Ne4 {[%clk 0:01:41]}  Nd6 {[%clk 0:02:29]} 17. Nxd6+ {[%clk 0:01:35]}  Rxd6 {[%clk 0:02:30]} 18. Rab1 {[%clk 0:01:26]}  Rhd8 {[%clk 0:02:25]} 19. Rfc1 {[%clk 0:01:22]}  Bf6 {[%clk 0:02:23]} 20. c3 {[%clk 0:01:22]}  g6 {[%clk 0:02:18]} 21. Bf4 {[%clk 0:01:08]}  R6d7 {[%clk 0:02:18]} 22. Be3 {[%clk 0:01:07]}  Nc6 {[%clk 0:02:15]} 23. b4 {[%clk 0:01:06]}  Ne7 {[%clk 0:02:15]} 24. a4 {[%clk 0:01:06]}  Nf5 {[%clk 0:02:15]} 25. b5 {[%clk 0:01:03]}  a5 {[%clk 0:02:15]} 26. b6 {[%clk 0:01:01]}  c6 {[%clk 0:02:15]} 27. Bf4 {[%clk 0:00:57]}  Re8 {[%clk 0:02:10]} 28. g4 {[%clk 0:00:51]}  hxg4 {[%clk 0:02:04]} 29. hxg4 {[%clk 0:00:52]}  Ne7 {[%clk 0:02:00]} 30. Ng3 {[%clk 0:00:47]}  Nd5 {[%clk 0:01:59]} 31. Bd2 {[%clk 0:00:47]}  Bd8 {[%clk 0:01:58]} 32. Ne4 {[%clk 0:00:46]}  Bxb6 {[%clk 0:01:57]} 33. c4 {[%clk 0:00:33]}  Nb4 {[%clk 0:01:57]} 34. Nf6 {[%clk 0:00:34]}  Red8 {[%clk 0:01:57]} 35. Nxd7 {[%clk 0:00:34]}  Rxd7 {[%clk 0:01:58]} 36. c5 {[%clk 0:00:33]}  Bc7 {[%clk 0:01:58]} 37. Bxb4 {[%clk 0:00:34]}  axb4 {[%clk 0:01:59]} 38. Rxb4 {[%clk 0:00:34]}  Ba5 {[%clk 0:01:58]} 39. Rbc4 {[%clk 0:00:34]}  Rd8 {[%clk 0:01:58]} 40. Kg2 {[%clk 0:00:34]}  Kd7 {[%clk 0:01:58]} 41. Rh1 {[%clk 0:00:34]}  Ke7 {[%clk 0:01:58]} 42. Rb1 {[%clk 0:00:34]}  Rd7 {[%clk 0:01:58]} 43. Rc2 {[%clk 0:00:31]}  Kd8 {[%clk 0:01:57]} 44. Rcb2 {[%clk 0:00:31]}  Kc8 {[%clk 0:01:58]} 45. Rh1 {[%clk 0:00:23]}  Bc3 {[%clk 0:01:57]} 46. Rh8+ {[%clk 0:00:24]}  Kc7 {[%clk 0:01:58]} 47. Rc2 {[%clk 0:00:21]}  Bxd4 {[%clk 0:01:58]} 48. a5 {[%clk 0:00:12]}  Bxh8 {[%clk 0:01:58]} 0-1


[Site "https://www.chess.com"]

[Event "Titled Tuesday Blitz June 20 Early 2023"]
[White "Goryachkina, Aleksandra"]
[Black "Makarian, Rudik"]
[WhiteFideId "4147103"]
[BlackFideId "44105681"]
[WhiteElo "2471"]
[BlackElo "2451"]
[Result "0-1"]
[Round "4"]
[TimeControl "180+2"]
[Date "2023.06.20"]
[WhiteClock "0:00:00"]
[BlackClock "0:01:07"]
[Board "25"]

1. e4 {[%clk 0:02:58]}  c5 {[%clk 0:02:58]} 2. Nf3 {[%clk 0:02:58]}  d6 {[%clk 0:02:58]} 3. Bb5+ {[%clk 0:02:57]}  Nd7 {[%clk 0:02:59]} 4. Ba4 {[%clk 0:02:55]}  a6 {[%clk 0:02:59]} 5. c4 {[%clk 0:02:54]}  e5 {[%clk 0:03:00]} 6. O-O {[%clk 0:02:50]}  Ne7 {[%clk 0:03:01]} 7. Nc3 {[%clk 0:02:48]}  Nc6 {[%clk 0:03:01]} 8. d3 {[%clk 0:02:45]}  Be7 {[%clk 0:03:01]} 9. a3 {[%clk 0:02:24]}  O-O {[%clk 0:02:51]} 10. h3 {[%clk 0:02:22]}  Nb6 {[%clk 0:02:49]} 11. Bc2 {[%clk 0:02:18]}  f5 {[%clk 0:02:45]} 12. exf5 {[%clk 0:02:11]}  Bxf5 {[%clk 0:02:46]} 13. Ne2 {[%clk 0:02:04]}  Bxh3 {[%clk 0:02:31]} 14. gxh3 {[%clk 0:01:33]}  Rxf3 {[%clk 0:02:31]} 15. Ng3 {[%clk 0:01:33]}  Rf7 {[%clk 0:02:23]} 16. Be3 {[%clk 0:01:28]}  Qd7 {[%clk 0:02:23]} 17. Kh2 {[%clk 0:01:26]}  Raf8 {[%clk 0:02:17]} 18. b4 {[%clk 0:01:05]}  Nd4 {[%clk 0:02:14]} 19. Bxd4 {[%clk 0:00:57]}  exd4 {[%clk 0:02:11]} 20. Qe2 {[%clk 0:00:52]}  Bh4 {[%clk 0:02:04]} 21. Rae1 {[%clk 0:00:39]}  Bxg3+ {[%clk 0:02:00]} 22. fxg3 {[%clk 0:00:38]}  Rxf1 {[%clk 0:02:00]} 23. Rxf1 {[%clk 0:00:38]}  Rxf1 {[%clk 0:02:01]} 24. Qxf1 {[%clk 0:00:39]}  Qf7 {[%clk 0:02:01]} 25. Qe2 {[%clk 0:00:36]}  Nd7 {[%clk 0:01:59]} 26. Kg2 {[%clk 0:00:30]}  b6 {[%clk 0:01:50]} 27. Qe4 {[%clk 0:00:23]}  g6 {[%clk 0:01:36]} 28. Bd1 {[%clk 0:00:12]}  Kg7 {[%clk 0:01:31]} 29. Qc6 {[%clk 0:00:01]}  Ne5 {[%clk 0:01:21]} 30. Qe4 {[%clk 0:00:02]}  Qf5 {[%clk 0:01:13]} 31. Qxf5 {[%clk 0:00:02]}  gxf5 {[%clk 0:01:14]} 32. Be2 {[%clk 0:00:02]}  cxb4 {[%clk 0:01:06]} 33. axb4 {[%clk 0:00:00]}  a5 {[%clk 0:01:07]} 0-1


[Site "https://www.chess.com"]

[Event "Titled Tuesday Blitz June 20 Early 2023"]
[White "Agibileg, Uurtsaikh"]
[Black "Hakobyan, Aram"]
[WhiteFideId "4901606"]
[BlackFideId "13306677"]
[WhiteElo "2353"]
[BlackElo "2584"]
[Result "0-1"]
[Round "4"]
[TimeControl "180+2"]
[Date "2023.06.20"]
[WhiteClock "0:00:08"]
[BlackClock "0:00:14"]
[Board "26"]

1. d4 {[%clk 0:03:00]}  g6 {[%clk 0:03:00]} 2. c4 {[%clk 0:02:59]}  Bg7 {[%clk 0:03:01]} 3. e4 {[%clk 0:02:59]}  d6 {[%clk 0:03:01]} 4. Nc3 {[%clk 0:02:57]}  c5 {[%clk 0:03:01]} 5. d5 {[%clk 0:02:57]}  Bxc3+ {[%clk 0:03:01]} 6. bxc3 {[%clk 0:02:56]}  e5 {[%clk 0:03:02]} 7. Bd3 {[%clk 0:02:54]}  Nd7 {[%clk 0:03:00]} 8. f4 {[%clk 0:02:52]}  exf4 {[%clk 0:02:26]} 9. Bxf4 {[%clk 0:02:51]}  Qf6 {[%clk 0:02:26]} 10. Qd2 {[%clk 0:02:45]}  Ne5 {[%clk 0:02:26]} 11. Bxe5 {[%clk 0:02:44]}  dxe5 {[%clk 0:02:12]} 12. Nf3 {[%clk 0:02:42]}  Qd6 {[%clk 0:02:06]} 13. O-O {[%clk 0:02:42]}  f6 {[%clk 0:02:07]} 14. a4 {[%clk 0:02:38]}  a5 {[%clk 0:02:01]} 15. Be2 {[%clk 0:02:17]}  Bd7 {[%clk 0:01:58]} 16. Ne1 {[%clk 0:02:16]}  b6 {[%clk 0:01:54]} 17. Nc2 {[%clk 0:02:13]}  Kd8 {[%clk 0:01:52]} 18. Ne3 {[%clk 0:02:13]}  Kc7 {[%clk 0:01:51]} 19. Bg4 {[%clk 0:02:14]}  Bxg4 {[%clk 0:01:42]} 20. Nxg4 {[%clk 0:02:15]}  h5 {[%clk 0:01:42]} 21. Ne3 {[%clk 0:02:15]}  Ne7 {[%clk 0:01:41]} 22. Nc2 {[%clk 0:02:12]}  Rhf8 {[%clk 0:01:26]} 23. Na3 {[%clk 0:02:11]}  Kb7 {[%clk 0:01:26]} 24. Nb5 {[%clk 0:02:11]}  Qd7 {[%clk 0:01:26]} 25. d6 {[%clk 0:02:07]}  Nc6 {[%clk 0:01:25]} 26. Qd5 {[%clk 0:01:59]}  Rad8 {[%clk 0:01:24]} 27. Rad1 {[%clk 0:01:45]}  Qf7 {[%clk 0:01:23]} 28. d7 {[%clk 0:01:42]}  Qxd5 {[%clk 0:01:20]} 29. Rxd5 {[%clk 0:01:43]}  Nb8 {[%clk 0:00:52]} 30. Rfd1 {[%clk 0:01:39]}  Kc6 {[%clk 0:00:53]} 31. Rd6+ {[%clk 0:01:17]}  Kb7 {[%clk 0:00:53]} 32. R6d5 {[%clk 0:01:06]}  Kc6 {[%clk 0:00:53]} 33. Na7+ {[%clk 0:00:53]}  Kb7 {[%clk 0:00:50]} 34. Nc8 {[%clk 0:00:52]}  Rxd7 {[%clk 0:00:41]} 35. Nd6+ {[%clk 0:00:39]}  Kc6 {[%clk 0:00:37]} 36. Nb5 {[%clk 0:00:39]}  Rfd8 {[%clk 0:00:18]} 37. Rf1 {[%clk 0:00:35]}  Rf8 {[%clk 0:00:17]} 38. Rxe5 {[%clk 0:00:28]}  fxe5 {[%clk 0:00:08]} 39. Rxf8 {[%clk 0:00:29]}  Rd1+ {[%clk 0:00:09]} 40. Kf2 {[%clk 0:00:29]}  Nd7 {[%clk 0:00:09]} 41. Rf7 {[%clk 0:00:29]}  Ra1 {[%clk 0:00:02]} 42. Na7+ {[%clk 0:00:24]}  Kc7 {[%clk 0:00:02]} 43. Nb5+ {[%clk 0:00:24]}  Kd8 {[%clk 0:00:03]} 44. Rg7 {[%clk 0:00:15]}  Rxa4 {[%clk 0:00:04]} 45. Rxg6 {[%clk 0:00:16]}  Ra1 {[%clk 0:00:04]} 46. h4 {[%clk 0:00:12]}  a4 {[%clk 0:00:04]} 47. Rg8+ {[%clk 0:00:12]}  Ke7 {[%clk 0:00:04]} 48. Ra8 {[%clk 0:00:13]}  Nf6 {[%clk 0:00:05]} 49. Kf3 {[%clk 0:00:09]}  Rf1+ {[%clk 0:00:06]} 50. Ke2 {[%clk 0:00:08]}  Rh1 {[%clk 0:00:06]} 51. Rxa4 {[%clk 0:00:07]}  Rxh4 {[%clk 0:00:07]} 52. Ra7+ {[%clk 0:00:07]}  Kf8 {[%clk 0:00:07]} 53. Nc7 {[%clk 0:00:07]}  Rxe4+ {[%clk 0:00:07]} 54. Kd3 {[%clk 0:00:07]}  Rg4 {[%clk 0:00:08]} 55. Ne6+ {[%clk 0:00:08]}  Kg8 {[%clk 0:00:09]} 56. Rb7 {[%clk 0:00:06]}  Rg3+ {[%clk 0:00:09]} 57. Ke2 {[%clk 0:00:05]}  Rxg2+ {[%clk 0:00:10]} 58. Kf3 {[%clk 0:00:05]}  Rc2 {[%clk 0:00:08]} 59. Rg7+ {[%clk 0:00:04]}  Kh8 {[%clk 0:00:09]} 60. Rf7 {[%clk 0:00:04]}  Rxc3+ {[%clk 0:00:09]} 61. Kg2 {[%clk 0:00:03]}  Ng4 {[%clk 0:00:08]} 62. Rf8+ {[%clk 0:00:02]}  Kh7 {[%clk 0:00:08]} 63. Re8 {[%clk 0:00:01]}  Rxc4 {[%clk 0:00:06]} 64. Kg3 {[%clk 0:00:01]}  Kg6 {[%clk 0:00:06]} 65. Rb8 {[%clk 0:00:02]}  Rb4 {[%clk 0:00:05]} 66. Nc7 {[%clk 0:00:03]}  Nf6 {[%clk 0:00:05]} 67. Rb7 {[%clk 0:00:02]}  Kf5 {[%clk 0:00:04]} 68. Na6 {[%clk 0:00:03]}  Rb3+ {[%clk 0:00:03]} 69. Kh4 {[%clk 0:00:03]}  Rd3 {[%clk 0:00:01]} 70. Rf7 {[%clk 0:00:03]}  Rd4+ {[%clk 0:00:02]} 71. Kg3 {[%clk 0:00:02]}  Kg6 {[%clk 0:00:03]} 72. Rf8 {[%clk 0:00:03]}  Ne4+ {[%clk 0:00:03]} 73. Kg2 {[%clk 0:00:03]}  h4 {[%clk 0:00:04]} 74. Rg8+ {[%clk 0:00:02]}  Kf5 {[%clk 0:00:04]} 75. Rf8+ {[%clk 0:00:03]}  Kg4 {[%clk 0:00:04]} 76. Nc7 {[%clk 0:00:03]}  Rd2+ {[%clk 0:00:05]} 77. Kf1 {[%clk 0:00:03]}  Ng3+ {[%clk 0:00:05]} 78. Ke1 {[%clk 0:00:02]}  Re2+ {[%clk 0:00:05]} 79. Kd1 {[%clk 0:00:03]}  Ra2 {[%clk 0:00:06]} 80. Ne6 {[%clk 0:00:03]}  h3 {[%clk 0:00:07]} 81. Rg8+ {[%clk 0:00:03]}  Kf3 {[%clk 0:00:07]} 82. Ng5+ {[%clk 0:00:03]}  Kg2 {[%clk 0:00:05]} 83. Ne4 {[%clk 0:00:04]}  Ra3 {[%clk 0:00:06]} 84. Nxg3 {[%clk 0:00:02]}  Rxg3 {[%clk 0:00:06]} 85. Rh8 {[%clk 0:00:03]}  h2 {[%clk 0:00:06]} 86. Rxh2+ {[%clk 0:00:03]}  Kxh2 {[%clk 0:00:06]} 87. Ke2 {[%clk 0:00:04]}  e4 {[%clk 0:00:07]} 88. Kf2 {[%clk 0:00:03]}  c4 {[%clk 0:00:08]} 89. Ke2 {[%clk 0:00:04]}  b5 {[%clk 0:00:09]} 90. Kd2 {[%clk 0:00:05]}  b4 {[%clk 0:00:09]} 91. Ke2 {[%clk 0:00:05]}  b3 {[%clk 0:00:10]} 92. Ke1 {[%clk 0:00:06]}  c3 {[%clk 0:00:10]} 93. Kd1 {[%clk 0:00:07]}  Rg2 {[%clk 0:00:10]} 94. Kc1 {[%clk 0:00:08]}  Kg3 {[%clk 0:00:11]} 95. Kb1 {[%clk 0:00:07]}  Rd2 {[%clk 0:00:11]} 96. Ka1 {[%clk 0:00:07]}  e3 {[%clk 0:00:12]} 97. Kb1 {[%clk 0:00:08]}  e2 {[%clk 0:00:13]} 98. Ka1 {[%clk 0:00:08]}  e1=Q# {[%clk 0:00:14]} 0-1


[Site "https://www.chess.com"]

[Event "Titled Tuesday Blitz June 20 Early 2023"]
[White "Stepanencu, Nicodim-Cosmin"]
[Black "Aravindh, Chithambaram VR."]
[WhiteFideId "1256220"]
[BlackFideId "5072786"]
[WhiteElo "2154"]
[BlackElo "2596"]
[Result "1/2-1/2"]
[Round "4"]
[TimeControl "180+2"]
[Date "2023.06.20"]
[WhiteClock "0:00:05"]
[BlackClock "0:00:03"]
[Board "27"]

1. b3 {[%clk 0:03:00]}  d5 {[%clk 0:02:58]} 2. Bb2 {[%clk 0:03:00]}  c5 {[%clk 0:02:58]} 3. e3 {[%clk 0:03:00]}  Nc6 {[%clk 0:02:59]} 4. Nf3 {[%clk 0:02:59]}  f6 {[%clk 0:02:58]} 5. d4 {[%clk 0:02:59]}  cxd4 {[%clk 0:02:57]} 6. exd4 {[%clk 0:03:00]}  e6 {[%clk 0:02:54]} 7. Nbd2 {[%clk 0:02:59]}  Bd6 {[%clk 0:02:54]} 8. a3 {[%clk 0:02:59]}  Nge7 {[%clk 0:02:55]} 9. Bd3 {[%clk 0:03:00]}  O-O {[%clk 0:02:55]} 10. O-O {[%clk 0:03:00]}  e5 {[%clk 0:02:52]} 11. dxe5 {[%clk 0:02:52]}  fxe5 {[%clk 0:02:52]} 12. Bb5 {[%clk 0:02:49]}  a6 {[%clk 0:02:49]} 13. Bxc6 {[%clk 0:02:47]}  Nxc6 {[%clk 0:02:50]} 14. c4 {[%clk 0:02:48]}  e4 {[%clk 0:02:43]} 15. Ne1 {[%clk 0:02:37]}  d4 {[%clk 0:01:46]} 16. Nxe4 {[%clk 0:02:29]}  Bxh2+ {[%clk 0:01:46]} 17. Kxh2 {[%clk 0:02:30]}  Qh4+ {[%clk 0:01:47]} 18. Kg1 {[%clk 0:02:31]}  Qxe4 {[%clk 0:01:48]} 19. Qd3 {[%clk 0:02:07]}  Bf5 {[%clk 0:01:44]} 20. Qxe4 {[%clk 0:02:02]}  Bxe4 {[%clk 0:01:45]} 21. Rd1 {[%clk 0:01:58]}  Rad8 {[%clk 0:01:41]} 22. f3 {[%clk 0:01:42]}  Bf5 {[%clk 0:01:35]} 23. Nd3 {[%clk 0:01:12]}  Rfe8 {[%clk 0:01:25]} 24. Rf2 {[%clk 0:00:52]}  Bxd3 {[%clk 0:00:16]} 25. Rxd3 {[%clk 0:00:52]}  Re3 {[%clk 0:00:15]} 26. Rfd2 {[%clk 0:00:39]}  Rxd3 {[%clk 0:00:07]} 27. Rxd3 {[%clk 0:00:40]}  a5 {[%clk 0:00:05]} 28. b4 {[%clk 0:00:24]}  axb4 {[%clk 0:00:05]} 29. axb4 {[%clk 0:00:25]}  Ne5 {[%clk 0:00:03]} 30. Rxd4 {[%clk 0:00:23]}  Rxd4 {[%clk 0:00:04]} 31. Bxd4 {[%clk 0:00:24]}  Nxc4 {[%clk 0:00:05]} 32. Kf2 {[%clk 0:00:24]}  Kf7 {[%clk 0:00:05]} 33. Ke2 {[%clk 0:00:20]}  g5 {[%clk 0:00:05]} 34. Kd3 {[%clk 0:00:21]}  Nd6 {[%clk 0:00:05]} 35. g4 {[%clk 0:00:19]}  Ke6 {[%clk 0:00:04]} 36. Be3 {[%clk 0:00:16]}  Nf7 {[%clk 0:00:04]} 37. Ke4 {[%clk 0:00:15]}  Nd6+ {[%clk 0:00:04]} 38. Kd4 {[%clk 0:00:14]}  h6 {[%clk 0:00:04]} 39. f4 {[%clk 0:00:15]}  Nf7 {[%clk 0:00:03]} 40. Kc5 {[%clk 0:00:11]}  Kd7 {[%clk 0:00:02]} 41. Kd5 {[%clk 0:00:08]}  gxf4 {[%clk 0:00:01]} 42. Bxf4 {[%clk 0:00:08]}  Ke7 {[%clk 0:00:02]} 43. Be3 {[%clk 0:00:05]}  Kd7 {[%clk 0:00:01]} 44. b5 {[%clk 0:00:05]}  Ke7 {[%clk 0:00:02]} 45. Kc5 {[%clk 0:00:05]}  Kd7 {[%clk 0:00:02]} 46. Kb6 {[%clk 0:00:05]}  Kc8 {[%clk 0:00:03]} 47. Kc5 {[%clk 0:00:05]}  Kc7 {[%clk 0:00:03]} 48. Bf4+ {[%clk 0:00:05]}  Kd7 {[%clk 0:00:03]} 49. Kd5 {[%clk 0:00:05]}  Ke7 {[%clk 0:00:03]} 50. Be3 {[%clk 0:00:04]}  Kd7 {[%clk 0:00:02]} 51. Bf4 {[%clk 0:00:05]}  Ke7 {[%clk 0:00:03]} 52. Be3 {[%clk 0:00:05]}  Kd7 {[%clk 0:00:03]} 53. Bf4 {[%clk 0:00:05]} 1/2-1/2


[Site "https://www.chess.com"]